[Event "Orlicka sachovnice 2023"]
[Site "Usti nad Orlici, Czech Republic"]
[Date "2023.05.06"]
[Round "8.3"]
[White "Malek, Daniel"]
[Black "Smehlik, Vojtech"]
[Result "0-1"]
[TimeControl "12 min + 3 s"]
[WhiteElo "1207"]
[BlackElo "1369"]

1. e4 {[%clk 00:12:01]} {[%emt 00:00:04]} e5 {[%clk 00:12:05]} {[%emt
00:00:01]} 2. Nf3 {[%clk 00:12:03]} {[%emt 00:00:02]} Nc6 {[%clk 00:12:07]} 3.
Bc4 {[%clk 00:12:05]} {[%emt 00:00:01]} Bc5 {[%clk 00:12:07]} {[%emt 00:00:03]}
4. d3 {[%clk 00:12:05]} {[%emt 00:00:02]} Nf6 {[%clk 00:12:03]} {[%emt
00:00:07]} 5. Nc3 {[%clk 00:12:06]} {[%emt 00:00:02]} h6 {[%clk 00:12:04]}
{[%emt 00:00:02]} 6. h3 {[%clk 00:12:05]} {[%emt 00:00:04]} O-O {[%clk
00:12:05]} {[%emt 00:00:03]} 7. Be3 {[%clk 00:12:00]} {[%emt 00:00:08]} Bb6
{[%clk 00:12:06]} {[%emt 00:00:01]} 8. Qd2 {[%clk 00:12:00]} {[%emt 00:00:02]}
d6 {[%clk 00:11:54]} {[%emt 00:00:16]} 9. O-O-O {[%clk 00:11:57]} {[%emt
00:00:05]} Bxe3 {[%clk 00:11:55]} {[%emt 00:00:03]} 10. Qxe3 {[%clk 00:11:52]}
{[%emt 00:00:07]} Be6 {[%clk 00:11:51]} {[%emt 00:00:08]} 11. Bb3 {[%clk
00:11:46]} {[%emt 00:00:09]} Nh7 {[%clk 00:11:39]} {[%emt 00:00:14]} 12. g4
{[%clk 00:11:37]} {[%emt 00:00:11]} Ne7 {[%clk 00:10:50]} {[%emt 00:00:53]} 13.
g5 {[%clk 00:11:28]} {[%emt 00:00:11]} hxg5 {[%clk 00:10:38]} {[%emt 00:00:15]}
14. Nxg5 {[%clk 00:11:28]} {[%emt 00:00:02]} Nxg5 {[%clk 00:10:41]} {[%emt
00:00:01]} 15. Qxg5 {[%clk 00:11:28]} {[%emt 00:00:03]} Ng6 {[%clk 00:10:41]}
{[%emt 00:00:03]} 16. Qg3 {[%clk 00:11:21]} {[%emt 00:00:09]} Nf4 {[%clk
00:10:34]} {[%emt 00:00:11]} 17. Rdg1 {[%clk 00:11:11]} {[%emt 00:00:12]} g6
{[%clk 00:10:34]} {[%emt 00:00:05]} 18. h4 {[%clk 00:11:08]} {[%emt 00:00:04]}
b5 {[%clk 00:10:32]} {[%emt 00:00:06]} 19. h5 {[%clk 00:11:02]} {[%emt
00:00:09]} Bxb3 {[%clk 00:10:15]} {[%emt 00:00:21]} 20. axb3 {[%clk 00:10:10]}
{[%emt 00:00:55]} b4 {[%clk 00:10:15]} {[%emt 00:00:03]} 21. hxg6 {[%clk
00:10:05]} {[%emt 00:00:07]} bxc3 {[%clk 00:09:36]} {[%emt 00:00:42]} 22. gxf7+
{[%clk 00:10:00]} {[%emt 00:00:08]} Kxf7 {[%clk 00:09:37]} {[%emt 00:00:03]} 23.
Qg7+ {[%clk 00:09:07]} {[%emt 00:00:55]} Ke8 {[%clk 00:09:29]} {[%emt
00:00:12]} 24. Re1 {[%clk 00:08:14]} {[%emt 00:00:55]} cxb2+ {[%clk 00:09:25]}
{[%emt 00:00:08]} 25. Kxb2 {[%clk 00:08:12]} {[%emt 00:00:05]} Qe7 {[%clk
00:09:26]} {[%emt 00:00:03]} 26. Qxe7+ {[%clk 00:07:57]} {[%emt 00:00:18]} Kxe7
{[%clk 00:09:28]} {[%emt 00:00:01]} 27. Rh7+ {[%clk 00:07:36]} {[%emt
00:00:23]} Rf7 {[%clk 00:09:28]} {[%emt 00:00:03]} 28. Rxf7+ {[%clk 00:07:36]}
{[%emt 00:00:02]} Kxf7 {[%clk 00:09:30]} {[%emt 00:00:02]} 29. Kc3 {[%clk
00:07:36]} {[%emt 00:00:04]} Rg8 {[%clk 00:09:30]} {[%emt 00:00:02]} 30. f3
{[%clk 00:07:32]} {[%emt 00:00:07]} Ne6 {[%clk 00:09:05]} {[%emt 00:00:29]} 31.
Ra1 {[%clk 00:07:18]} {[%emt 00:00:17]} Ra8 {[%clk 00:09:00]} {[%emt 00:00:07]}
32. Kb4 {[%clk 00:07:14]} {[%emt 00:00:07]} a6 {[%clk 00:08:59]} {[%emt
00:00:05]} 33. Kc4 {[%clk 00:06:54]} {[%emt 00:00:22]} Nd4 {[%clk 00:08:52]}
{[%emt 00:00:09]} 34. Kc3 {[%clk 00:06:46]} {[%emt 00:00:12]} Ke6 {[%clk
00:08:50]} {[%emt 00:00:04]} 35. Rf1 {[%clk 00:06:36]} {[%emt 00:00:13]} Rf8
{[%clk 00:08:30]} {[%emt 00:00:24]} 36. Ra1 {[%clk 00:06:34]} {[%emt 00:00:05]}
Ra8 {[%clk 00:08:27]} {[%emt 00:00:06]} 37. f4 {[%clk 00:06:30]} {[%emt
00:00:07]} Nb5+ {[%clk 00:08:27]} {[%emt 00:00:03]} 38. Kb4 {[%clk 00:06:24]}
{[%emt 00:00:09]} c5+ {[%clk 00:08:19]} {[%emt 00:00:10]} 39. Kc4 {[%clk
00:06:12]} {[%emt 00:00:15]} exf4 {[%clk 00:08:17]} {[%emt 00:00:06]} 40. Rf1
{[%clk 00:06:05]} {[%emt 00:00:09]} Ke5 {[%clk 00:08:14]} {[%emt 00:00:06]} 41.
Rf2 {[%clk 00:05:49]} {[%emt 00:00:19]} Rg8 {[%clk 00:07:54]} {[%emt 00:00:23]}
42. c3 {[%clk 00:05:40]} {[%emt 00:00:12]} Rc8 {[%clk 00:07:00]} {[%emt
00:00:58]} 43. Ra2 {[%clk 00:05:40]} {[%emt 00:00:02]} d5+ {[%clk 00:06:49]}
{[%emt 00:00:19]} 44. exd5 {[%clk 00:05:38]} {[%emt 00:00:05]} Nd6# {[%clk
00:06:50]} {[%emt 00:00:03]} 0-1

[Event "Orlicka sachovnice 2023"]
[Site "Usti nad Orlici, Czech Republic"]
[Date "2023.05.06"]
[Round "8.4"]
[White "Padivy, Jan"]
[Black "Zimmermann, Jost"]
[Result "0-1"]
[TimeControl "12 min + 3 s"]
[WhiteElo "1189"]
[BlackElo "1061"]

1. d4 {[%clk 00:12:04]} {[%emt 00:00:02]} d5 {[%clk 00:12:04]} {[%emt
00:00:02]} 2. c4 {[%clk 00:12:06]} {[%emt 00:00:01]} e6 {[%clk 00:12:03]}
{[%emt 00:00:05]} 3. Nc3 {[%clk 00:12:07]} {[%emt 00:00:02]} Nf6 {[%clk
00:12:05]} 4. Nf3 {[%clk 00:12:08]} {[%emt 00:00:01]} Bb4 {[%clk 00:12:04]}
{[%emt 00:00:04]} 5. Bd2 {[%clk 00:12:10]} {[%emt 00:00:02]} Nc6 {[%clk
00:12:03]} {[%emt 00:00:03]} 6. a3 {[%clk 00:12:12]} {[%emt 00:00:02]} Bxc3
{[%clk 00:12:01]} {[%emt 00:00:04]} 7. Bxc3 {[%clk 00:12:14]} {[%emt 00:00:02]}
Bd7 {[%clk 00:11:47]} {[%emt 00:00:18]} 8. e3 {[%clk 00:12:06]} {[%emt
00:00:11]} O-O {[%clk 00:11:47]} {[%emt 00:00:02]} 9. Be2 {[%clk 00:12:08]}
{[%emt 00:00:01]} Re8 {[%clk 00:11:46]} {[%emt 00:00:04]} 10. O-O {[%clk
00:12:09]} {[%emt 00:00:02]} Ne4 {[%clk 00:11:32]} {[%emt 00:00:17]} 11. Bd3
{[%clk 00:12:01]} {[%emt 00:00:11]} Nxc3 {[%clk 00:11:33]} {[%emt 00:00:02]} 12.
bxc3 {[%clk 00:12:03]} {[%emt 00:00:01]} e5 {[%clk 00:11:30]} {[%emt 00:00:06]}
13. Rb1 {[%clk 00:12:01]} {[%emt 00:00:06]} b6 {[%clk 00:11:31]} {[%emt
00:00:02]} 14. Re1 {[%clk 00:11:59]} {[%emt 00:00:05]} e4 {[%clk 00:11:32]} 15.
cxd5 {[%clk 00:11:51]} {[%emt 00:00:11]} Ne7 {[%clk 00:11:22]} {[%emt
00:00:13]} 16. Bxe4 {[%clk 00:11:49]} {[%emt 00:00:04]} Ng6 {[%clk 00:11:22]}
{[%emt 00:00:03]} 17. Bd3 {[%clk 00:11:37]} {[%emt 00:00:13]} c6 {[%clk
00:11:22]} {[%emt 00:00:05]} 18. e4 {[%clk 00:10:39]} {[%emt 00:01:01]} cxd5
{[%clk 00:11:18]} {[%emt 00:00:07]} 19. exd5 {[%clk 00:10:40]} {[%emt
00:00:01]} Bg4 {[%clk 00:11:05]} {[%emt 00:00:17]} 20. Rxe8+ {[%clk 00:10:28]}
{[%emt 00:00:15]} Qxe8 {[%clk 00:11:06]} {[%emt 00:00:02]} 21. h3 {[%clk
00:10:29]} {[%emt 00:00:01]} Bd7 {[%clk 00:11:03]} {[%emt 00:00:05]} 22. Qd2
{[%clk 00:10:06]} {[%emt 00:00:25]} Qe7 {[%clk 00:10:47]} {[%emt 00:00:21]} 23.
a4 {[%clk 00:09:44]} {[%emt 00:00:23]} Bxa4 {[%clk 00:10:42]} {[%emt 00:00:09]}
24. Qa2 {[%clk 00:09:35]} {[%emt 00:00:07]} Bd7 {[%clk 00:10:38]} {[%emt
00:00:12]} 25. Rxb6 {[%clk 00:09:12]} {[%emt 00:00:26]} Nf4 {[%clk 00:10:15]}
{[%emt 00:00:27]} 26. Bc2 {[%clk 00:08:16]} {[%emt 00:00:51]} Ne2+ {[%clk
00:09:20]} {[%emt 00:01:05]} 27. Kf1 {[%clk 00:07:38]} {[%emt 00:00:35]} Nxc3
{[%clk 00:09:21]} {[%emt 00:00:09]} 28. Qa1 {[%clk 00:03:08]} {[%emt 00:04:06]}
Qe2+ {[%clk 00:09:05]} {[%emt 00:00:44]} 29. Kg1 {[%clk 00:03:09]} {[%emt
00:00:01]} Qxc2 {[%clk 00:09:06]} {[%emt 00:00:04]} 30. Rb7 {[%clk 00:02:59]}
{[%emt 00:00:09]} Bxh3 {[%clk 00:08:21]} {[%emt 00:00:52]} 31. gxh3 {[%clk
00:01:51]} {[%emt 00:01:10]} Qg6+ {[%clk 00:08:12]} {[%emt 00:00:12]} 32. Kh2
{[%clk 00:01:06]} {[%emt 00:00:44]} Nxd5 {[%clk 00:07:34]} {[%emt 00:00:46]} 33.
Qb2 {[%clk 00:00:19]} {[%emt 00:00:46]} h6 {[%emt 00:00:55]} 34. Qa1 0-1

[Event "Orlicka sachovnice 2023"]
[Site "Usti nad Orlici, Czech Republic"]
[Date "2023.05.06"]
[Round "8.5"]
[White "Sorf, Filip"]
[Black "Vecerova, Hana"]
[Result "1/2-1/2"]
[TimeControl "12 min + 3 s"]
[WhiteElo "1513"]
[BlackElo "1171"]

1. e4 {[%clk 00:12:05]} e5 {[%clk 00:12:05]} {[%emt 00:00:01]} 2. Nf3 {[%clk
00:12:06]} {[%emt 00:00:02]} Nc6 {[%clk 00:12:07]} {[%emt 00:00:02]} 3. Bc4
{[%clk 00:12:08]} {[%emt 00:00:01]} Nf6 {[%clk 00:12:08]} {[%emt 00:00:01]} 4.
d3 {[%clk 00:12:09]} {[%emt 00:00:02]} h6 {[%clk 00:12:10]} {[%emt 00:00:02]} 5.
Nc3 {[%clk 00:12:10]} {[%emt 00:00:02]} Bc5 {[%clk 00:12:12]} {[%emt 00:00:01]}
6. Be3 {[%clk 00:12:09]} {[%emt 00:00:04]} Bb6 {[%clk 00:12:14]} 7. Qd2 {[%clk
00:12:09]} {[%emt 00:00:03]} d6 {[%clk 00:12:09]} {[%emt 00:00:08]} 8. h3
{[%clk 00:12:10]} {[%emt 00:00:02]} Nd4 {[%clk 00:11:57]} {[%emt 00:00:16]} 9.
Bxd4 {[%clk 00:12:01]} {[%emt 00:00:11]} Bxd4 {[%clk 00:11:58]} {[%emt
00:00:02]} 10. Nxd4 {[%clk 00:12:01]} {[%emt 00:00:04]} exd4 {[%clk 00:11:58]}
{[%emt 00:00:02]} 11. Ne2 {[%clk 00:12:02]} {[%emt 00:00:02]} c5 {[%clk
00:11:58]} {[%emt 00:00:03]} 12. O-O {[%clk 00:11:54]} {[%emt 00:00:10]} O-O
{[%clk 00:11:59]} {[%emt 00:00:03]} 13. Nf4 {[%clk 00:11:30]} {[%emt 00:00:26]}
Re8 {[%clk 00:11:23]} {[%emt 00:00:39]} 14. Rfe1 {[%clk 00:11:16]} {[%emt
00:00:17]} a6 {[%emt 00:00:33]} 15. a4 {[%clk 00:11:17]} {[%emt 00:00:01]} Be6
{[%clk 00:10:49]} {[%emt 00:00:08]} 16. Nxe6 {[%clk 00:11:11]} {[%emt
00:00:08]} fxe6 {[%clk 00:10:47]} {[%emt 00:00:06]} 17. e5 {[%clk 00:10:52]}
{[%emt 00:00:21]} Nd5 {[%clk 00:10:36]} {[%emt 00:00:15]} 18. exd6 {[%clk
00:10:40]} {[%emt 00:00:15]} Qxd6 {[%clk 00:10:37]} {[%emt 00:00:02]} 19. Re4
{[%clk 00:10:13]} {[%emt 00:00:30]} Nf6 {[%clk 00:09:48]} {[%emt 00:00:52]} 20.
Re2 {[%clk 00:09:52]} {[%emt 00:00:24]} Kh8 {[%clk 00:09:14]} {[%emt 00:00:36]}
21. Rae1 {[%clk 00:09:29]} {[%emt 00:00:26]} e5 {[%emt 00:01:33]} 22. f4 {[%clk
00:08:25]} {[%emt 00:00:02]} exf4 {[%emt 00:00:23]} 23. Re6 {[%clk 00:07:55]}
{[%emt 00:00:26]} Qc7 {[%emt 00:00:46]} 24. R1e5 {[%clk 00:06:47]} {[%emt
00:01:00]} Rxe6 {[%clk 00:07:42]} {[%emt 00:00:25]} 25. Rxe6 {[%emt 00:01:28]}
Re8 {[%clk 00:06:13]} {[%emt 00:00:05]} 26. Qe2 {[%clk 00:06:47]} {[%emt
00:00:05]} Qd7 {[%clk 00:04:56]} {[%emt 00:01:17]} 27. Rxe8+ {[%clk 00:06:45]}
{[%emt 00:00:07]} Qxe8 {[%clk 00:04:55]} {[%emt 00:00:05]} 28. Qxe8+ Nxe8
{[%clk 00:04:57]} 29. Kf2 {[%clk 00:06:37]} {[%emt 00:00:11]} Nf6 {[%clk
00:04:54]} {[%emt 00:00:06]} 30. Kf3 {[%clk 00:06:27]} {[%emt 00:00:12]} g5
{[%emt 00:00:15]} 31. c3 {[%clk 00:06:15]} {[%emt 00:00:05]} a5 {[%clk
00:04:49]} {[%emt 00:00:08]} 1/2-1/2

[Event "Orlicka sachovnice 2023"]
[Site "Usti nad Orlici, Czech Republic"]
[Date "2023.05.06"]
[Round "8.6"]
[White "Knizner, Michal"]
[Black "Jun, Robert"]
[Result "0-1"]
[TimeControl "12 min + 3 s"]
[WhiteElo "1152"]
[BlackElo "1424"]

1. e4 {[%clk 00:12:05]} c5 {[%clk 00:12:05]} {[%emt 00:00:01]} 2. Nc3 {[%clk
00:12:05]} {[%emt 00:00:02]} d6 {[%clk 00:12:08]} 3. Bc4 {[%clk 00:12:04]}
{[%emt 00:00:05]} a6 {[%clk 00:12:09]} {[%emt 00:00:02]} 4. d3 {[%clk
00:12:02]} {[%emt 00:00:04]} e6 {[%clk 00:12:11]} 5. a4 {[%clk 00:11:47]}
{[%emt 00:00:18]} Nf6 {[%clk 00:12:12]} {[%emt 00:00:02]} 6. Bg5 {[%clk
00:11:47]} {[%emt 00:00:03]} Be7 {[%clk 00:12:15]} 7. Nf3 {[%clk 00:11:39]}
{[%emt 00:00:11]} Nc6 {[%clk 00:12:06]} {[%emt 00:00:11]} 8. O-O {[%clk
00:11:26]} {[%emt 00:00:16]} O-O {[%clk 00:12:03]} {[%emt 00:00:06]} 9. Re1
{[%clk 00:10:40]} {[%emt 00:00:48]} Ng4 {[%clk 00:11:44]} {[%emt 00:00:23]} 10.
Bxe7 {[%clk 00:10:23]} {[%emt 00:00:21]} Qxe7 {[%clk 00:11:45]} 11. h3 {[%clk
00:10:14]} {[%emt 00:00:12]} Nge5 {[%emt 00:00:03]} 12. Nxe5 {[%clk 00:09:55]}
{[%emt 00:00:20]} Nxe5 {[%clk 00:11:49]} {[%emt 00:00:02]} 13. b3 {[%clk
00:08:25]} {[%emt 00:01:32]} Nxc4 {[%clk 00:11:47]} {[%emt 00:00:05]} 14. bxc4
{[%clk 00:08:20]} {[%emt 00:00:08]} Qf6 {[%clk 00:11:48]} {[%emt 00:00:02]} 15.
Qd2 {[%clk 00:08:11]} {[%emt 00:00:10]} Qg6 {[%clk 00:11:10]} {[%emt 00:00:42]}
16. e5 {[%clk 00:07:08]} {[%emt 00:01:07]} Rd8 {[%clk 00:10:52]} {[%emt
00:00:21]} 17. Ne4 {[%clk 00:06:32]} {[%emt 00:00:37]} d5 {[%clk 00:10:37]}
{[%emt 00:00:20]} 18. cxd5 {[%clk 00:05:52]} {[%emt 00:00:43]} exd5 {[%clk
00:10:35]} {[%emt 00:00:05]} 19. Ng3 {[%clk 00:05:35]} {[%emt 00:00:20]} Be6
{[%clk 00:10:23]} {[%emt 00:00:17]} 20. Rab1 {[%clk 00:05:13]} {[%emt
00:00:23]} Rd7 {[%clk 00:10:24]} {[%emt 00:00:03]} 21. Qa5 {[%clk 00:04:20]}
{[%emt 00:00:55]} c4 {[%clk 00:10:20]} {[%emt 00:00:07]} 22. dxc4 {[%clk
00:04:05]} {[%emt 00:00:18]} dxc4 {[%clk 00:10:22]} {[%emt 00:00:02]} 23. c3
{[%clk 00:03:52]} {[%emt 00:00:16]} Rad8 {[%clk 00:10:02]} {[%emt 00:00:23]} 24.
Qb6 {[%clk 00:03:25]} {[%emt 00:00:29]} Qc2 {[%clk 00:09:51]} {[%emt 00:00:14]}
25. Qb4 {[%clk 00:03:04]} {[%emt 00:00:23]} Bd5 {[%clk 00:09:19]} {[%emt
00:00:36]} 26. Rec1 {[%clk 00:02:33]} {[%emt 00:00:32]} Qg6 {[%clk 00:09:09]}
{[%emt 00:00:15]} 27. Qa5 {[%clk 00:01:57]} {[%emt 00:00:40]} Bc6 {[%clk
00:08:59]} {[%emt 00:00:13]} 28. Rb6 {[%clk 00:01:29]} {[%emt 00:00:30]} Rd1+
{[%clk 00:08:50]} {[%emt 00:00:13]} 29. Rxd1 {[%clk 00:01:18]} {[%emt
00:00:13]} Rxd1+ {[%clk 00:08:52]} {[%emt 00:00:02]} 30. Kh2 {[%clk 00:01:17]}
{[%emt 00:00:04]} Qc2 {[%clk 00:08:45]} {[%emt 00:00:09]} 31. Qc5 {[%clk
00:00:47]} {[%emt 00:00:32]} Rd5 {[%clk 00:08:13]} {[%emt 00:00:37]} 32. Qe7
{[%clk 00:00:34]} {[%emt 00:00:14]} h6 {[%clk 00:07:58]} {[%emt 00:00:21]} 33.
Nh5 {[%clk 00:00:12]} {[%emt 00:00:24]} Qxf2 {[%clk 00:07:40]} {[%emt
00:00:20]} 34. Qh4 {[%clk 00:00:08]} {[%emt 00:00:07]} Qxh4 {[%clk 00:07:35]}
{[%emt 00:00:08]} 35. Ng3 {[%clk 00:00:09]} {[%emt 00:00:03]} Rd2 {[%clk
00:07:33]} {[%emt 00:00:05]} 36. Rb4 {[%clk 00:00:08]} {[%emt 00:00:04]} Rxg2+
{[%clk 00:07:33]} {[%emt 00:00:04]} 37. Kh1 {[%clk 00:00:10]} {[%emt 00:00:01]}
Rb2+ {[%clk 00:07:31]} {[%emt 00:00:04]} 38. Kg1 {[%clk 00:00:00]} {[%emt
00:00:17]} 0-1

[Event "Orlicka sachovnice 2023"]
[Site "Usti nad Orlici, Czech Republic"]
[Date "2023.05.06"]
[Round "8.7"]
[White "Kloud, Tomas"]
[Black "Findejs, David"]
[Result "0-1"]
[TimeControl "12 min + 3 s"]
[WhiteElo "1075"]
[BlackElo "1378"]

1. Nf3 {[%clk 00:12:05]} c5 {[%emt 00:00:03]} 2. c4 {[%clk 00:12:06]} Nf6
{[%clk 00:12:01]} {[%emt 00:00:06]} 3. Nc3 {[%clk 00:12:08]} {[%emt 00:00:01]}
Nc6 {[%clk 00:11:57]} {[%emt 00:00:08]} 4. e3 {[%clk 00:12:09]} {[%emt
00:00:02]} g6 {[%clk 00:11:57]} {[%emt 00:00:05]} 5. d4 {[%clk 00:12:10]}
{[%emt 00:00:01]} cxd4 {[%clk 00:11:48]} {[%emt 00:00:12]} 6. exd4 {[%clk
00:12:11]} {[%emt 00:00:02]} e6 {[%clk 00:11:47]} {[%emt 00:00:03]} 7. Bg5
{[%clk 00:12:10]} {[%emt 00:00:04]} Bg7 {[%clk 00:11:46]} {[%emt 00:00:05]} 8.
Bd3 {[%clk 00:12:02]} {[%emt 00:00:11]} O-O {[%clk 00:11:37]} {[%emt 00:00:15]}
9. O-O {[%clk 00:12:02]} h6 {[%clk 00:11:36]} {[%emt 00:00:04]} 10. Bh4 {[%clk
00:12:02]} {[%emt 00:00:04]} b6 {[%clk 00:11:18]} {[%emt 00:00:21]} 11. Rc1
{[%clk 00:12:00]} {[%emt 00:00:04]} Bb7 {[%clk 00:11:18]} {[%emt 00:00:03]} 12.
Bb1 {[%clk 00:11:57]} {[%emt 00:00:06]} Qc7 {[%clk 00:10:34]} {[%emt 00:00:47]}
13. Bg3 {[%clk 00:11:31]} {[%emt 00:00:30]} Qd8 {[%clk 00:10:14]} {[%emt
00:00:23]} 14. Qd3 {[%clk 00:11:17]} {[%emt 00:00:17]} d5 {[%clk 00:10:06]}
{[%emt 00:00:11]} 15. cxd5 {[%clk 00:10:54]} {[%emt 00:00:26]} exd5 {[%clk
00:10:05]} {[%emt 00:00:04]} 16. Rfe1 {[%clk 00:10:23]} {[%emt 00:00:33]} Re8
{[%clk 00:08:30]} {[%emt 00:01:38]} 17. Rxe8+ {[%clk 00:10:07]} {[%emt
00:00:19]} Qxe8 {[%clk 00:08:30]} {[%emt 00:00:02]} 18. Re1 {[%clk 00:10:08]}
{[%emt 00:00:02]} Qd7 {[%clk 00:08:20]} {[%emt 00:00:14]} 19. Ne5 {[%clk
00:09:40]} {[%emt 00:00:30]} Re8 {[%clk 00:07:57]} {[%emt 00:00:27]} 20. Nxd7
{[%clk 00:08:52]} {[%emt 00:00:51]} Rxe1+ {[%clk 00:07:55]} {[%emt 00:00:05]}
21. Qf1 {[%clk 00:08:52]} {[%emt 00:00:03]} Rxf1+ {[%clk 00:07:56]} {[%emt
00:00:02]} 22. Kxf1 {[%clk 00:08:51]} {[%emt 00:00:04]} Nxd7 {[%clk 00:07:57]}
{[%emt 00:00:02]} 0-1

[Event "Orlicka sachovnice 2023"]
[Site "Usti nad Orlici, Czech Republic"]
[Date "2023.05.06"]
[Round "9.1"]
[White "Zimmermann, Jost"]
[Black "Stary, Vojtech"]
[Result "0-1"]
[TimeControl "12 min + 3 s"]
[WhiteElo "1061"]
[BlackElo "1604"]

1. e4 {[%clk 00:12:05]} c5 {[%clk 00:12:05]} {[%emt 00:00:02]} 2. Nf3 {[%clk
00:12:06]} {[%emt 00:00:01]} e6 {[%clk 00:12:07]} {[%emt 00:00:02]} 3. c4
{[%clk 00:12:04]} {[%emt 00:00:05]} Nc6 {[%clk 00:12:06]} {[%emt 00:00:03]} 4.
Nc3 {[%clk 00:12:05]} {[%emt 00:00:03]} a6 {[%emt 00:01:03]} 5. d3 {[%clk
00:11:12]} {[%emt 00:00:09]} g6 {[%emt 00:00:35]} 6. Bf4 {[%clk 00:10:39]}
{[%emt 00:00:09]} d6 {[%clk 00:11:17]} {[%emt 00:00:34]} 7. d4 {[%clk
00:10:22]} {[%emt 00:00:19]} cxd4 {[%clk 00:11:03]} {[%emt 00:00:18]} 8. Nxd4
{[%emt 00:00:46]} e5 {[%clk 00:09:39]} {[%emt 00:00:42]} 9. Nxc6 {[%clk
00:10:25]} {[%emt 00:00:01]} bxc6 {[%clk 00:09:41]} {[%emt 00:00:01]} 10. Bg3
{[%emt 00:01:12]} Rb8 {[%clk 00:08:29]} {[%emt 00:00:11]} 11. b3 {[%emt
00:00:36]} Bg7 {[%clk 00:07:42]} {[%emt 00:00:20]} 12. Be2 {[%clk 00:10:02]}
{[%emt 00:00:17]} Ne7 {[%clk 00:07:40]} {[%emt 00:00:05]} 13. O-O {[%emt
00:00:10]} c5 {[%emt 00:01:02]} 14. Nd5 {[%emt 00:00:08]} Nc6 {[%emt 00:00:14]}
15. Bg4 {[%emt 00:01:39]} O-O {[%clk 00:06:21]} {[%emt 00:00:08]} 16. Bxc8
{[%clk 00:08:18]} {[%emt 00:00:03]} Rxc8 {[%emt 00:00:08]} 17. Rb1 {[%emt
00:00:34]} a5 {[%emt 00:00:18]} 18. f4 {[%emt 00:00:29]} Nd4 {[%emt 00:00:07]}
19. fxe5 {[%emt 00:00:06]} dxe5 {[%emt 00:00:55]} 20. Ne3 {[%emt 00:00:29]} Qd7
{[%emt 00:00:21]} 21. Nc2 {[%emt 00:00:24]} Qe6 {[%emt 00:00:06]} 22. Nxd4
{[%clk 00:06:18]} {[%emt 00:00:11]} exd4 {[%emt 00:00:12]} 23. Re1 {[%emt
00:00:16]} Be5 {[%clk 00:04:41]} {[%emt 00:00:01]} 24. Bxe5 {[%clk 00:05:56]}
{[%emt 00:00:13]} Qxe5 {[%emt 00:00:07]} 25. a4 {[%emt 00:00:36]} Rb8 {[%emt
00:00:06]} 26. Re2 {[%emt 00:00:13]} Rb4 {[%emt 00:00:33]} 27. Qd3 {[%emt
00:00:16]} Rfb8 {[%emt 00:00:15]} 28. Rf2 {[%clk 00:04:20]} {[%emt 00:00:11]}
R8b7 {[%emt 00:01:10]} 29. Rfb2 {[%emt 00:00:08]} Qb8 {[%clk 00:03:57]} 30. Qf3
{[%clk 00:03:30]} {[%emt 00:00:10]} Rxc4 {[%clk 00:03:38]} {[%emt 00:00:22]} 31.
bxc4 {[%clk 00:03:21]} {[%emt 00:00:12]} Rxb2 {[%clk 00:03:40]} 32. Rxb2 {[%clk
00:03:20]} {[%emt 00:00:04]} Qxb2 {[%clk 00:03:42]} 33. Qg3 {[%clk 00:03:17]}
{[%emt 00:00:05]} Qc1+ {[%clk 00:03:36]} {[%emt 00:00:11]} 34. Kf2 {[%clk
00:03:18]} {[%emt 00:00:02]} Qd2+ {[%clk 00:03:37]} {[%emt 00:00:01]} 35. Kf3
{[%clk 00:03:18]} {[%emt 00:00:03]} Qd3+ {[%clk 00:03:39]} {[%emt 00:00:02]} 36.
Kf4 {[%clk 00:03:20]} Qxg3+ {[%emt 00:00:04]} 37. hxg3 {[%clk 00:03:22]} Kg7
{[%emt 00:00:07]} 38. e5 {[%emt 00:00:03]} Kf8 {[%emt 00:00:11]} 39. Ke4 {[%clk
00:03:19]} Ke7 {[%emt 00:00:02]} 40. g4 {[%clk 00:03:19]} {[%emt 00:00:01]} Ke6
{[%clk 00:03:34]} {[%emt 00:00:03]} 41. g5 {[%clk 00:03:20]} Ke7 {[%clk
00:03:34]} 42. g4 {[%clk 00:03:20]} {[%emt 00:00:08]} Kf8 {[%clk 00:03:35]}
{[%emt 00:00:02]} 43. Kd3 {[%clk 00:03:17]} {[%emt 00:00:05]} Kg7 {[%clk
00:03:38]} 44. Ke4 {[%emt 00:00:10]} h6 {[%emt 00:00:13]} 45. gxh6+ {[%clk
00:03:13]} {[%emt 00:00:01]} Kxh6 {[%clk 00:03:28]} {[%emt 00:00:02]} 46. Kd5
{[%emt 00:00:02]} d3 47. Kxc5 {[%clk 00:03:17]} {[%emt 00:00:02]} d2 {[%clk
00:03:33]} {[%emt 00:00:02]} 48. Kb6 d1=Q {[%clk 00:03:30]} {[%emt 00:00:01]}
49. c5 Qxg4 {[%emt 00:00:08]} 50. c6 {[%clk 00:03:23]} Qc8 {[%emt 00:00:09]} 51.
Kxa5 {[%clk 00:03:17]} {[%emt 00:00:02]} Qxc6 {[%emt 00:00:02]} 52. e6 {[%clk
00:03:16]} {[%emt 00:00:03]} fxe6 {[%clk 00:03:35]} {[%emt 00:00:01]} 53. Kb4
{[%clk 00:03:16]} e5 {[%clk 00:03:37]} {[%emt 00:00:07]} 0-1